bitfinex-derivatives/quotes_BTCF0:USTF0_20250903
["timestamp","ask_amount","ask_price","bid_price","bid_amount"]
[1756908477494,0.001,111860.0,111850.0,1.3364505]
[1756908477992,1.22616,111890.0,111850.0,2.2017705]
[1756908478293,1.84680007,111890.0,111870.0,0.03706]
[1756908478687,1.84680007,111890.0,111870.0,0.39786]
[1756908478880,1.84680007,111890.0,111870.0,0.03706]
[1756908478881,0.98144007,111890.0,111870.0,0.03706]
[1756908479087,0.3608,111890.0,111880.0,0.03706]
[1756908479389,0.001,111890.0,111880.0,0.39786]
[1756908479890,0.001,111890.0,111880.0,0.01364]
[1756908480188,0.001,111890.0,111870.0,0.01364]
[1756908480189,1.2109987,111890.0,111870.0,0.01364]
[1756908480394,1.2109987,111890.0,111860.0,0.03706]
[1756908480395,0.5991987,111880.0,111860.0,0.03706]
[1756908480586,1.4643587,111880.0,111860.0,0.03706]
[1756908480787,1.22596,111880.0,111860.0,0.03706]
[1756908480986,1.8251587,111880.0,111860.0,0.03706]
[1756908481192,0.3608,111880.0,111860.0,0.03706]
[1756908481389,0.3608,111880.0,111860.0,0.01364]
[1756908481587,0.9599987,111880.0,111870.0,0.01364]
[1756908481990,0.3608,111880.0,111870.0,0.01364]
[1756908482189,0.3618,111880.0,111860.0,0.01364]
[1756908482391,0.9609987,111880.0,111860.0,0.01364]
[1756908482590,0.9609987,111880.0,111860.0,0.03706]
[1756908482891,0.9629987,111880.0,111860.0,0.03706]
[1756908483095,1.8250387,111870.0,111850.0,0.01364]
[1756908483290,0.9599987,111860.0,111850.0,0.01364]
[1756908483895,0.9599987,111860.0,111840.0,0.03421946]
[1756908484098,0.9599987,111850.0,111840.0,0.03421946]
[1756908484797,0.9599987,111850.0,111840.0,0.05763946]
[1756908484997,0.3608,111850.0,111840.0,0.05763946]
[1756908485199,0.3608,111850.0,111840.0,0.03421946]
[1756908485799,2.0749587,111850.0,111840.0,0.02057946]
[1756908485996,2.0749587,111850.0,111840.0,0.02157946]
[1756908486197,2.09639528,111850.0,111840.0,0.02157946]
[1756908486494,2.09639528,111850.0,111840.0,0.001]
[1756908487696,2.09635528,111850.0,111840.0,0.001]
[1756908488297,2.09835528,111850.0,111840.0,0.001]
[1756908488498,2.10135528,111850.0,111810.0,0.01364]
[1756908488795,0.3608,111820.0,111810.0,0.03706]
[1756908489598,1.8249187,111830.0,111820.0,0.01394]
[1756908489798,1.84635992,111830.0,111820.0,0.01394]
[1756908490093,1.8249187,111830.0,111820.0,0.01394]
[1756908490993,1.22568,111830.0,111820.0,0.03692]
[1756908492599,1.22572,111830.0,111820.0,0.03692]
[1756908492800,0.86492,111830.0,111820.0,0.03692]
[1756908492999,0.86592,111830.0,111820.0,0.39772]
[1756908493200,0.001,111830.0,111820.0,0.39772]
[1756908493401,0.001,111830.0,111820.0,0.64772]
[1756908493601,0.3608,111860.0,111850.0,0.03692]
[1756908496299,0.9599987,111860.0,111850.0,0.01394]
[1756908496900,0.9599987,111860.0,111850.0,0.08422722]
[1756908497103,0.3608,111860.0,111850.0,0.03692]
[1756908498096,1.22552,111870.0,111850.0,0.03692]
[1756908498392,1.84618212,111870.0,111860.0,0.01394]
[1756908498597,1.84618212,111870.0,111860.0,0.03692]
[1756908498802,1.22552,111870.0,111860.0,0.03692]
[1756908499201,1.22548,111870.0,111860.0,0.03692]
[1756908499702,1.8246787,111870.0,111850.0,0.01394]
[1756908500003,0.3608,111860.0,111850.0,0.01394]
[1756908500905,0.3608,111860.0,111850.0,0.03692]
[1756908501206,1.8276787,111870.0,111850.0,0.03692]
[1756908501407,1.8276787,111870.0,111860.0,0.01394]
[1756908501606,1.8266787,111870.0,111860.0,0.01394]
[1756908501797,1.8266787,111870.0,111850.0,0.01394]
[1756908501997,1.22748,111870.0,111850.0,0.03692]
[1756908502192,1.8266787,111870.0,111850.0,0.03692]
[1756908502398,0.3618,111860.0,111850.0,0.03692]
[1756908503098,0.3608,111860.0,111850.0,0.03692]
[1756908503499,1.8276787,111870.0,111850.0,0.03692]
[1756908503699,1.8276787,111870.0,111850.0,0.01394]
[1756908504008,0.3618,111860.0,111850.0,0.01394]
[1756908504501,0.9609987,111860.0,111840.0,0.37474]
[1756908504702,0.5991987,111850.0,111840.0,0.37474]
[1756908504902,1.4637187,111850.0,111840.0,0.3608]
[1756908505407,1.8245187,111850.0,111830.0,0.10890054]
[1756908507102,0.9599987,111840.0,111830.0,0.08592054]
[1756908507300,0.9599987,111840.0,111830.0,0.01394]
[1756908507496,0.9609987,111860.0,111840.0,0.01394]
[1756908507702,0.86448,111850.0,111840.0,0.03692]
[1756908508008,1.8244787,111850.0,111830.0,0.01394]
[1756908508203,0.9599987,111840.0,111830.0,0.01394]
[1756908509312,0.3618,111840.0,111820.0,0.47006467]
[1756908509500,0.9609987,111840.0,111820.0,0.47006467]
[1756908509697,0.9609987,111840.0,111830.0,0.01394]
[1756908510103,0.3628,111840.0,111830.0,0.03692]
[1756908510716,0.3628,111840.0,111830.0,0.01394]
[1756908511415,0.3628,111840.0,111830.0,0.03692]
[1756908511712,1.2272,111840.0,111830.0,0.03692]
[1756908512013,0.8664,111840.0,111830.0,0.03692]
[1756908512506,0.002,111840.0,111830.0,0.03692]
[1756908512711,0.001,111840.0,111830.0,0.39772]
[1756908512910,0.3608,111860.0,111850.0,0.01394]
[1756908513111,1.24669064,111860.0,111850.0,0.01394]
[1756908513904,0.38229064,111860.0,111850.0,0.01394]
[1756908514104,1.24869064,111860.0,111850.0,0.03692]
[1756908514303,1.2272,111860.0,111850.0,0.03692]
[1756908514814,1.22716,111860.0,111850.0,0.28692]
[1756908515418,1.22916,111860.0,111850.0,0.28692]
[1756908516110,0.003,111860.0,111850.0,0.28692]
[1756908516416,0.002,111860.0,111850.0,0.28692]
[1756908517111,0.002,111860.0,111850.0,0.64772]
[1756908517416,0.002,111860.0,111850.0,1.33631]
[1756908517715,0.002,111860.0,111850.0,0.7371113]
[1756908517916,0.002,111860.0,111850.0,0.64772]
[1756908521915,0.002,111860.0,111850.0,0.39772]
[1756908525617,0.67167169,111860.0,111850.0,0.39772]
[1756908525815,0.002,111860.0,111850.0,0.39772]
[1756908526319,0.002,111860.0,111850.0,0.64772]
[1756908526721,0.002,111860.0,111850.0,2.27090319]
[1756908526915,0.002,111860.0,111850.0,2.18151169]
[1756908527315,0.002,111860.0,111850.0,1.51184]
[1756908528122,0.002,111860.0,111850.0,2.18151169]
[1756908528421,1.89459169,111890.0,111880.0,0.03673]
[1756908528622,0.38229545,111890.0,111880.0,0.03673]
[1756908528824,0.3608,111890.0,111880.0,0.03673]
[1756908529018,1.03047169,111900.0,111880.0,0.39753]
[1756908529321,1.89455169,111910.0,111900.0,0.03673]
[1756908529516,1.91603735,111910.0,111900.0,0.03673]
[1756908529723,1.91603735,111910.0,111900.0,0.01353]
[1756908530119,2.16603735,111910.0,111900.0,0.01353]
[1756908530319,2.16603735,111910.0,111890.0,0.03673]
[1756908530518,1.03047169,111900.0,111890.0,0.03673]
[1756908531121,0.3608,111900.0,111890.0,0.03673]
[1756908531319,1.03047169,111900.0,111890.0,0.03673]
[1756908531626,0.3608,111900.0,111890.0,0.03673]
[1756908531825,1.03047169,111900.0,111890.0,0.03673]
[1756908532526,1.03047169,111900.0,111890.0,0.0458]
[1756908533026,1.03447169,111900.0,111890.0,0.0458]
[1756908533220,0.3648,111900.0,111890.0,0.0458]
[1756908533422,1.03447169,111900.0,111890.0,0.0458]
[1756908533822,1.04047169,111900.0,111890.0,0.0458]
[1756908534030,0.01,111900.0,111890.0,0.0458]
[1756908534817,0.3708,111900.0,111890.0,0.03673]
[1756908535026,1.51025873,111900.0,111890.0,0.03673]
[1756908535227,1.51025873,111900.0,111880.0,0.0429805]
[1756908535228,1.51025873,111900.0,111880.0,0.0661805]
[1756908535431,1.26185873,111900.0,111890.0,0.03673]
[1756908535727,1.93153042,111900.0,111890.0,0.01353]
[1756908536432,2.18153042,111900.0,111890.0,0.01353]
[1756908536630,2.18153042,111900.0,111880.0,0.0661805]
[1756908536831,1.03047169,111890.0,111880.0,0.0661805]
[1756908537329,1.28047169,111890.0,111870.0,0.01353]
[1756908537527,1.03047169,111880.0,111870.0,0.03673]
[1756908537727,1.90071169,111880.0,111860.0,0.01353]
[1756908537929,1.03047169,111870.0,111860.0,0.03673]
[1756908538132,0.3608,111870.0,111860.0,0.03673]
[1756908538327,1.23128,111870.0,111860.0,0.03673]
[1756908538533,1.03047169,111880.0,111870.0,0.03673]
[1756908538834,1.90107169,111880.0,111870.0,0.03673]
[1756908539825,1.90407169,111880.0,111870.0,0.03673]
[1756908540026,1.2344,111880.0,111870.0,0.03673]
[1756908540229,1.90507169,111880.0,111870.0,0.03673]
[1756908541134,1.90407169,111880.0,111870.0,0.03673]
[1756908541335,1.92754582,111880.0,111870.0,0.03673]
[1756908541739,1.25787413,111880.0,111870.0,0.03673]
[1756908542038,1.92754582,111880.0,111870.0,0.01353]
[1756908542235,1.05694582,111880.0,111870.0,0.01353]
[1756908542434,1.92626582,111880.0,111870.0,0.01353]
[1756908543030,1.92626582,111880.0,111870.0,0.03673]
[1756908543230,1.25659413,111880.0,111870.0,0.01353]
[1756908543431,1.05694582,111880.0,111870.0,0.03673]
[1756908543631,1.92626582,111880.0,111870.0,0.03673]
[1756908544838,1.05694582,111880.0,111870.0,0.03673]
[1756908545039,1.92686582,111880.0,111870.0,0.03673]
[1756908545838,1.92686582,111880.0,111870.0,0.01353]
[1756908546038,1.92686582,111880.0,111870.0,0.03673]
[1756908546337,1.92686582,111880.0,111870.0,0.01353]
[1756908547142,1.05694582,111880.0,111870.0,0.03673]
[1756908547334,1.25607413,111880.0,111870.0,0.03673]
[1756908547537,0.38727413,111880.0,111870.0,0.28673]
[1756908548139,0.38727413,111880.0,111870.0,0.03673]
[1756908548841,1.05694582,111880.0,111870.0,0.03673]
[1756908549243,0.38727413,111880.0,111870.0,0.03673]
[1756908549549,0.38727413,111880.0,111870.0,0.28673]
[1756908549550,0.02647413,111880.0,111870.0,0.28673]
[1756908549737,0.005,111880.0,111870.0,0.64753]
[1756908551238,0.005,111880.0,111870.0,1.52001]
[1756908551438,0.005,111880.0,111870.0,1.27001]
[1756908551834,0.005,111880.0,111870.0,1.52001]
[1756908553244,0.005,111880.0,111870.0,2.27905669]
[1756908553446,0.005,111880.0,111870.0,1.52001]
[1756908553638,0.005,111880.0,111870.0,2.18968169]
[1756908553837,0.003,111880.0,111870.0,2.18968169]
[1756908554046,0.001,111880.0,111870.0,1.52001]
[1756908554237,0.003,111880.0,111870.0,2.18968169]
[1756908554737,0.003,111880.0,111870.0,1.31720169]
[1756908554936,0.003,111880.0,111870.0,1.52501]
[1756908555540,0.003,111880.0,111870.0,2.19468169]
[1756908556847,0.003,111880.0,111870.0,0.64753]
[1756908557148,0.003,111880.0,111870.0,1.52481]
[1756908557348,0.003,111880.0,111870.0,0.64753]
[1756908557646,0.003,111880.0,111870.0,1.52481]
[1756908558941,0.003,111880.0,111870.0,2.19448169]
[1756908559542,0.003,111880.0,111870.0,0.64753]
[1756908559749,0.003,111880.0,111870.0,1.31720169]
[1756908559948,0.003,111880.0,111870.0,2.19468169]
[1756908560148,0.003,111880.0,111870.0,1.52501]
[1756908560351,0.003,111880.0,111870.0,0.64753]
[1756908560546,0.003,111880.0,111870.0,1.52557]
[1756908561955,0.003,111880.0,111870.0,1.27565]
[1756908561956,0.67267169,111880.0,111870.0,1.27565]
[1756908562150,0.67267169,111880.0,111870.0,1.27541]
[1756908562347,0.003,111880.0,111870.0,1.27541]
[1756908563355,0.003,111880.0,111870.0,1.94508169]
[1756908563556,0.003,111880.0,111870.0,1.27541]
[1756908563754,0.003,111880.0,111870.0,1.94508169]
[1756908564061,0.003,111880.0,111870.0,1.27541]
[1756908564253,0.003,111880.0,111870.0,1.94508169]
[1756908564449,0.003,111880.0,111870.0,1.27541]
[1756908565457,0.003,111880.0,111870.0,1.94508169]
[1756908565657,0.003,111880.0,111870.0,1.27541]
[1756908565858,0.003,111880.0,111870.0,1.94508169]
[1756908566058,0.003,111880.0,111870.0,1.27541]
[1756908566455,0.003,111880.0,111870.0,1.3647847]
[1756908566658,0.003,111880.0,111870.0,2.03445639]
[1756908567460,0.003,111880.0,111870.0,1.94508169]
[1756908567655,0.8928,111920.0,111870.0,2.02092639]
[1756908567656,1.04651169,111920.0,111870.0,2.02092639]
[1756908567851,0.03694004,111920.0,111910.0,0.03676]
[1756908568356,0.01594,111920.0,111910.0,0.03676]
[1756908568955,1.29741169,111920.0,111890.0,0.01354]
[1756908569155,0.3608,111910.0,111890.0,0.03676]
[1756908569352,0.3608,111910.0,111900.0,0.01354]
[1756908569553,0.38179818,111910.0,111900.0,0.03676]
[1756908569861,0.38179818,111910.0,111890.0,0.03676]
[1756908570059,0.3608,111900.0,111890.0,0.03676]
[1756908570561,1.03047169,111900.0,111890.0,0.03676]
[1756908570962,0.66967169,111900.0,111890.0,0.03676]
[1756908571158,1.03047169,111900.0,111890.0,0.03676]
[1756908571856,1.03147169,111900.0,111890.0,0.03676]
[1756908572157,1.28147169,111900.0,111890.0,0.01354]
[1756908572357,1.28147169,111900.0,111880.0,0.01354]
[1756908572549,1.03047169,111890.0,111880.0,0.03676]
[1756908572961,1.03047169,111890.0,111880.0,0.01354]
[1756908573263,0.3608,111890.0,111880.0,0.01354]
[1756908573462,1.2414,111900.0,111880.0,0.03676]
[1756908573665,1.03047169,111890.0,111880.0,0.03776]
[1756908573964,1.03047169,111890.0,111880.0,0.001]
[1756908574164,1.28047169,111890.0,111880.0,0.001]
[1756908574366,1.30174273,111890.0,111880.0,0.001]
[1756908574965,0.63207104,111890.0,111880.0,0.001]
[1756908575159,1.30174273,111890.0,111880.0,0.001]
[1756908575560,1.30174273,111890.0,111870.0,0.01354]
[1756908575858,1.03047169,111880.0,111860.0,0.0430151]
[1756908576058,1.03047169,111870.0,111860.0,0.0430151]
[1756908576661,1.03047169,111870.0,111860.0,0.03420627]
[1756908576861,1.28047169,111870.0,111860.0,0.02066627]
[1756908577058,1.30174359,111870.0,111860.0,0.02066627]
[1756908577253,1.30174359,111870.0,111840.0,0.01354]
[1756908577454,1.03047169,111850.0,111840.0,0.01354]
[1756908578163,0.3608,111850.0,111840.0,0.01354]
[1756908578354,1.03047169,111850.0,111840.0,0.01354]
[1756908578858,0.3608,111850.0,111840.0,0.03676]
[1756908579054,1.03047169,111850.0,111840.0,0.01354]
[1756908579567,1.03147169,111850.0,111840.0,0.01354]
[1756908579763,0.3618,111850.0,111840.0,0.02271906]
[1756908579965,0.3618,111850.0,111840.0,0.04753906]
[1756908580269,1.03147169,111850.0,111840.0,0.02271906]
[1756908580473,1.03147169,111850.0,111840.0,0.01354]
[1756908580666,1.03247169,111850.0,111840.0,0.01354]
[1756908580860,1.03247169,111850.0,111830.0,0.10600165]
[1756908580861,1.28247169,111850.0,111830.0,0.04307792]
[1756908581065,1.03047169,111840.0,111830.0,0.03417845]
[1756908581370,1.91271169,111840.0,111830.0,0.03417845]
[1756908581558,1.91271169,111840.0,111830.0,0.02063845]
[1756908581960,1.91271169,111840.0,111820.0,0.01354]
[1756908581961,2.16271169,111840.0,111820.0,0.01354]
[1756908582166,1.03047169,111830.0,111820.0,0.01354]
[1756908582568,1.03047169,111830.0,111810.0,0.04375064]
[1756908582569,1.28047169,111830.0,111810.0,0.04375064]
[1756908582867,1.03047169,111820.0,111810.0,0.03467373]
[1756908583265,0.3608,111820.0,111810.0,0.01354]
[1756908583467,1.03047169,111820.0,111810.0,0.03836]
[1756908583667,0.3608,111820.0,111810.0,0.03836]
[1756908583861,0.3608,111820.0,111810.0,0.04136]
[1756908584269,1.03047169,111820.0,111810.0,0.04136]
[1756908584465,1.03047169,111820.0,111810.0,0.01654]
[1756908584865,1.03047169,111820.0,111810.0,0.04136]
[1756908585275,1.03047169,111820.0,111810.0,0.04336]
[1756908585571,1.03047169,111820.0,111810.0,0.01854]
[1756908585572,1.8455252,111820.0,111810.0,0.01854]
[1756908585775,1.8455252,111820.0,111810.0,0.005]
[1756908587167,0.3608,111820.0,111810.0,0.0445]
[1756908588273,0.9600852,111820.0,111810.0,0.01968]
[1756908589675,0.9600852,111820.0,111810.0,0.0445]
[1756908589875,0.3608,111820.0,111810.0,0.0445]
[1756908590076,0.3608,111820.0,111810.0,0.005]
[1756908590377,0.9600852,111820.0,111810.0,0.005]
[1756908590578,1.2100852,111820.0,111810.0,0.005]
[1756908592474,2.1002852,111820.0,111810.0,0.01968]
[1756908592772,1.2100852,111820.0,111810.0,0.005]
[1756908592978,2.0996852,111820.0,111810.0,0.005]
[1756908593178,2.0995252,111820.0,111810.0,0.01968]
[1756908593679,1.8491252,111820.0,111810.0,0.01968]
[1756908593978,0.3608,111820.0,111810.0,0.0445]
[1756908596079,0.3608,111820.0,111810.0,0.01968]
[1756908596080,1.8621252,111820.0,111810.0,0.01968]
[1756908596379,1.8621252,111820.0,111810.0,0.005]
[1756908596772,1.26284,111820.0,111810.0,0.005]
[1756908596977,1.8621252,111820.0,111810.0,0.005]
[1756908598385,1.8621252,111820.0,111810.0,0.01968]
[1756908598571,1.8621252,111820.0,111810.0,0.0445]
[1756908598774,1.8621252,111820.0,111810.0,0.01968]
[1756908599182,0.3608,111820.0,111810.0,0.0445]
[1756908599375,1.06372,111820.0,111810.0,0.0445]
[1756908600380,0.3608,111820.0,111810.0,0.0445]
[1756908600583,0.3608,111830.0,111820.0,0.0395]
[1756908600884,0.3608,111840.0,111830.0,0.0395]
[1756908601282,1.28103416,111840.0,111830.0,0.0395]
[1756908602581,0.38199416,111840.0,111830.0,0.0395]
[1756908604084,0.02119416,111840.0,111830.0,0.0395]
[1756908605986,0.02119416,111840.0,111830.0,0.01468]
[1756908606187,0.98127936,111840.0,111830.0,0.01468]
[1756908606391,0.98127936,111840.0,111820.0,0.01668]
[1756908606583,1.8573652,111830.0,111820.0,0.0415]
[1756908606889,1.87855936,111830.0,111820.0,0.0415]
[1756908607290,1.87855936,111830.0,111820.0,0.01668]
[1756908607597,1.87855936,111830.0,111820.0,0.002]
[1756908608481,0.02119416,111830.0,111820.0,0.4023]
[1756908608785,1.27847416,111840.0,111820.0,0.6523]
[1756908608986,1.27847416,111840.0,111830.0,0.03829]
[1756908609189,0.02119416,111840.0,111830.0,0.03829]
[1756908609486,0.38199416,111840.0,111830.0,0.03829]
[1756908609791,0.02119416,111840.0,111830.0,0.03829]
[1756908609989,1.25708,111850.0,111840.0,0.01436]
[1756908610186,1.87765405,111850.0,111840.0,0.03829]
[1756908610689,1.27836885,111850.0,111840.0,0.01436]
[1756908610887,1.27836885,111850.0,111840.0,0.03829]
[1756908610888,1.87765405,111850.0,111840.0,0.03829]
[1756908611089,1.27836885,111850.0,111840.0,0.03829]
[1756908611391,1.27936885,111850.0,111840.0,0.03829]
[1756908611788,0.38308885,111850.0,111840.0,0.03829]
[1756908611993,0.91696885,111850.0,111840.0,0.39909]
[1756908612289,0.02228885,111850.0,111840.0,0.64909]
[1756908612683,0.001,111850.0,111840.0,0.64909]
[1756908613292,0.002,111850.0,111840.0,0.64909]
[1756908613992,0.002,111850.0,111840.0,0.03829]
[1756908614186,0.3628,111850.0,111840.0,0.03829]
[1756908614692,0.38402243,111850.0,111840.0,0.03829]
[1756908614893,1.87802763,111850.0,111840.0,0.03829]
[1756908615186,1.52874243,111850.0,111830.0,0.03829]
[1756908615386,1.87802763,111850.0,111840.0,0.01436]
[1756908615587,1.27874243,111850.0,111840.0,0.03829]
[1756908616389,1.27774243,111850.0,111840.0,0.03829]
[1756908617685,0.38302243,111850.0,111840.0,0.03829]
[1756908618085,0.02222243,111850.0,111840.0,0.01436]
[1756908618390,0.38402243,111850.0,111840.0,0.01436]
[1756908618698,0.98330763,111850.0,111840.0,0.01436]
[1756908618992,0.38402243,111850.0,111840.0,0.03829]
[1756908619193,0.38402243,111850.0,111840.0,0.01436]
[1756908619593,0.98330763,111850.0,111830.0,0.01436]
[1756908619795,0.9600852,111840.0,111830.0,0.01436]
[1756908619996,1.8541652,111840.0,111830.0,0.01436]
[1756908620190,1.27608752,111840.0,111830.0,0.01436]
[1756908620397,1.27608752,111840.0,111830.0,0.03829]
[1756908620598,1.27608752,111840.0,111830.0,0.01436]
[1756908621290,1.27608752,111840.0,111830.0,0.03829]
[1756908621490,1.27608752,111840.0,111830.0,0.01436]
[1756908621691,0.38200752,111840.0,111830.0,0.03829]
[1756908622397,0.02120752,111840.0,111830.0,0.64909]
[1756908622598,1.25516,111860.0,111850.0,0.01436]
[1756908622800,1.27637762,111860.0,111850.0,0.03829]
[1756908623000,0.38201762,111860.0,111850.0,0.03829]
[1756908623493,0.89468,111870.0,111860.0,0.01436]
[1756908623694,1.25544,111880.0,111870.0,0.01436]
[1756908623896,1.87594509,111880.0,111870.0,0.01436]
[1756908625292,1.27685989,111880.0,111870.0,0.03829]
[1756908625496,0.38201989,111880.0,111870.0,0.03829]
[1756908625894,0.38701989,111880.0,111870.0,0.03829]
[1756908626098,1.28429989,111880.0,111870.0,0.03829]
[1756908626299,1.28829989,111880.0,111870.0,0.03829]
[1756908626500,0.39101989,111880.0,111870.0,0.03829]
[1756908627901,0.39101989,111880.0,111870.0,0.04708007]
[1756908628098,0.03021989,111880.0,111870.0,0.40788007]
[1756908628303,0.009,111880.0,111870.0,0.65788007]
[1756908629806,0.009,111880.0,111870.0,0.29708007]
[1756908629993,0.9690852,111880.0,111870.0,0.04708007]
[1756908630303,0.3698,111880.0,111870.0,0.04708007]
[1756908630496,0.3698,111880.0,111870.0,0.02315007]
[1756908631123,0.9690852,111880.0,111870.0,0.01436]
[1756908631508,0.9690852,111880.0,111870.0,0.03829]
[1756908631707,0.3698,111880.0,111870.0,0.03829]
[1756908633315,1.2190852,111880.0,111860.0,0.02332051]
[1756908633510,0.9690852,111880.0,111860.0,0.02332051]
[1756908633713,0.5992852,111870.0,111860.0,0.04725051]
[1756908634305,0.9600852,111870.0,111850.0,0.05929023]
[1756908634508,0.3608,111860.0,111850.0,0.05929023]
[1756908634916,0.3608,111860.0,111850.0,0.06804109]
[1756908635212,0.9600852,111860.0,111850.0,0.02311086]
[1756908635419,0.9600852,111860.0,111850.0,0.00875086]
[1756908635716,0.3608,111860.0,111840.0,0.03829]
[1756908635912,1.8601252,111850.0,111840.0,0.01436]
[1756908636215,1.8601252,111850.0,111830.0,0.03525655]
[1756908636216,1.88132327,111850.0,111830.0,0.03525655]
[1756908636412,0.9600852,111840.0,111830.0,0.03525655]
[1756908636610,0.3608,111840.0,111830.0,0.03525655]
[1756908637116,0.9600852,111840.0,111830.0,0.04437288]
[1756908637314,1.23128625,111840.0,111820.0,0.01436]
[1756908637505,0.9600852,111830.0,111820.0,0.01436]
[1756908637709,0.9600852,111830.0,111820.0,0.01883]
[1756908637912,0.9600852,111830.0,111820.0,0.00447]
[1756908638310,0.9600852,111830.0,111820.0,0.01883]
[1756908638311,1.88088797,111830.0,111820.0,0.01883]
[1756908638512,2.13088797,111830.0,111820.0,0.00447]
[1756908639216,2.13088797,111830.0,111820.0,0.00647]
[1756908640215,0.64099095,111830.0,111820.0,0.00647]
[1756908640420,1.53999095,111830.0,111820.0,0.00747]
[1756908640620,2.13927615,111830.0,111820.0,0.00747]
[1756908640813,1.3118562,111830.0,111820.0,0.00747]
[1756908641011,2.2108562,111830.0,111820.0,0.00747]
[1756908641208,0.70358282,111830.0,111820.0,0.00747]
[1756908641420,2.13068797,111830.0,111820.0,0.00747]
[1756908642019,1.53140277,111830.0,111820.0,0.00747]
[1756908642322,2.13068797,111830.0,111820.0,0.00747]
[1756908642617,2.1094852,111830.0,111820.0,0.00747]
[1756908642822,1.53164762,111830.0,111820.0,0.00747]
[1756908643021,2.13093282,111830.0,111820.0,0.00747]
[1756908645324,2.20151165,111830.0,111820.0,0.00747]
[1756908647321,2.20179165,111830.0,111820.0,0.00747]
[1756908647525,2.27296851,111830.0,111820.0,0.00747]
[1756908648025,2.02284851,111830.0,111820.0,0.00747]
[1756908648920,2.02232851,111830.0,111820.0,0.04502]
[1756908649425,2.02232851,111830.0,111820.0,0.00747]
[1756908649818,2.02232851,111830.0,111820.0,0.003]
[1756908652323,2.02227746,111830.0,111820.0,0.003]
[1756908653524,1.6018154,111830.0,111820.0,0.003]
[1756908653724,2.27227746,111830.0,111820.0,0.003]
[1756908654231,1.99904089,111830.0,111820.0,0.01688]
[1756908654531,2.02027483,111830.0,111820.0,0.04055]
[1756908654832,1.34981277,111830.0,111820.0,0.04055]
[1756908655031,2.02027483,111830.0,111820.0,0.01688]
[1756908655631,2.02027483,111830.0,111820.0,0.04055]
[1756908655827,2.02027483,111830.0,111820.0,0.01688]
[1756908656025,2.02027483,111830.0,111820.0,0.04055]
[1756908656229,2.02027483,111830.0,111820.0,0.003]
[1756908657730,4.15999483,111830.0,111810.0,0.00447]
[1756908657933,1.03126206,111820.0,111810.0,0.00447]
[1756908658238,1.052376,111820.0,111810.0,0.01835]
[1756908658635,1.052376,111820.0,111810.0,0.00447]
[1756908659727,1.055376,111820.0,111810.0,0.00447]
[1756908660229,1.97583806,111820.0,111790.0,0.01436]
[1756908660536,2.06252412,111800.0,111790.0,0.01436]
[1756908660733,2.08363806,111800.0,111780.0,0.01388]
[1756908660927,1.93014206,111790.0,111770.0,0.01388]
[1756908661129,1.03126206,111780.0,111770.0,0.01388]
[1756908661428,1.05245415,111780.0,111770.0,0.01388]
[1756908661733,1.05245415,111780.0,111760.0,0.03755]
[1756908661933,1.93014206,111770.0,111760.0,0.03755]
[1756908662141,1.92914206,111770.0,111760.0,0.01388]
[1756908662343,1.95033392,111770.0,111760.0,0.01388]
[1756908663732,1.95033392,111770.0,111760.0,0.01588]
[1756908663929,1.05245392,111770.0,111760.0,0.01588]
[1756908664139,1.95037392,111770.0,111760.0,0.01588]
[1756908664334,1.95041392,111770.0,111760.0,0.01588]
[1756908664936,1.95041392,111770.0,111760.0,0.03955]
[1756908665234,1.95057392,111770.0,111760.0,0.03955]
[1756908665438,1.95057392,111770.0,111760.0,0.04055]
[1756908665640,1.95061392,111770.0,111760.0,0.04055]
[1756908665842,2.02358477,111770.0,111760.0,0.04055]
[1756908666143,1.12542477,111770.0,111760.0,0.29055]
[1756908666344,1.27991186,111770.0,111760.0,0.29055]
[1756908666535,1.95037392,111770.0,111760.0,0.29055]
[1756908667045,1.27991186,111770.0,111760.0,0.04055]
[1756908667244,1.95037392,111770.0,111760.0,0.04055]
[1756908667443,1.95037392,111770.0,111760.0,0.29055]
[1756908668041,0.38199186,111770.0,111760.0,0.29055]
[1756908668347,1.83001392,111770.0,111760.0,0.29055]
[1756908668642,1.83001392,111770.0,111760.0,0.04055]
[1756908668840,1.83001392,111770.0,111760.0,0.01688]
[1756908669140,1.15955186,111770.0,111760.0,0.0399]
[1756908669444,1.83001392,111770.0,111760.0,0.0399]
[1756908670141,1.15955186,111770.0,111760.0,0.0399]
[1756908670337,1.90307063,111770.0,111760.0,0.0399]
[1756908670538,1.95221392,111770.0,111760.0,0.2899]
[1756908671447,1.95221392,111770.0,111760.0,0.26688]
[1756908671840,1.95221392,111770.0,111760.0,0.0399]
[1756908672040,1.95221392,111770.0,111760.0,0.003]
[1756908673238,2.20221392,111770.0,111760.0,0.003]
[1756908673843,1.34092412,111750.0,111730.0,0.01388]
[1756908674148,1.93042206,111740.0,111730.0,0.0369]
[1756908674341,0.38199186,111740.0,111730.0,0.0369]
[1756908674547,1.95133392,111740.0,111730.0,0.0369]
[1756908674848,1.35091333,111740.0,111730.0,0.0369]
[1756908675150,1.95133392,111740.0,111730.0,0.2869]
[1756908676446,1.95133392,111740.0,111730.0,0.2899]
[1756908676752,1.95133392,111740.0,111730.0,0.2949]
[1756908677946,1.95133392,111740.0,111730.0,0.008]
[1756908678848,1.93014206,111740.0,111730.0,0.008]
[1756908679047,1.95132504,111740.0,111730.0,0.008]
[1756908679648,1.05244504,111740.0,111730.0,0.008]
[1756908679947,1.3505975,111740.0,111730.0,0.04571]
[1756908680165,2.02105956,111740.0,111730.0,0.04571]
[1756908680553,2.02069956,111740.0,111730.0,0.29571]
[1756908681047,1.12257956,111740.0,111730.0,0.29571]
[1756908681249,2.02069956,111740.0,111730.0,0.29571]
[1756908681444,0.38198298,111740.0,111730.0,0.29571]
[1756908681745,0.91918298,111740.0,111730.0,0.29571]
[1756908681945,0.02118298,111740.0,111730.0,0.29571]
[1756908682356,0.91926298,111740.0,111730.0,0.29571]
[1756908682549,0.3608,111750.0,111730.0,0.65651]